[Event "Titled Tuesday Blitz May 30 Early 2023"]
[White "Mendonca, Leon Luke"]
[Black "Narayanan, Srinath"]
[WhiteFideId "35028561"]
[BlackFideId "5018420"]
[WhiteElo "2464"]
[BlackElo "2438"]
[Result "0-1"]
[Round "09"]
[TimeControl "180+2"]
[Date "2023.05.30"]
[WhiteClock "0:00:00"]
[BlackClock "0:01:04"]

1. e4 {[%clk 0:03:00]}  c5 {[%clk 0:02:59]} 2. Nf3 {[%clk 0:03:01]}  d6 {[%clk 0:03:00]} 3. c3 {[%clk 0:03:00]}  Nf6 {[%clk 0:03:00]} 4. Be2 {[%clk 0:03:00]}  g6 {[%clk 0:02:59]} 5. O-O {[%clk 0:03:00]}  Bg7 {[%clk 0:03:00]} 6. Re1 {[%clk 0:03:01]}  O-O {[%clk 0:03:00]} 7. Bf1 {[%clk 0:03:02]}  Nc6 {[%clk 0:03:00]} 8. h3 {[%clk 0:03:00]}  e5 {[%clk 0:02:59]} 9. d3 {[%clk 0:02:57]}  h6 {[%clk 0:03:00]} 10. a4 {[%clk 0:02:57]}  Re8 {[%clk 0:03:00]} 11. Na3 {[%clk 0:02:57]}  d5 {[%clk 0:03:00]} 12. exd5 {[%clk 0:02:56]}  Nxd5 {[%clk 0:03:01]} 13. Nc4 {[%clk 0:02:56]}  Qc7 {[%clk 0:03:00]} 14. a5 {[%clk 0:02:53]}  Bf5 {[%clk 0:02:56]} 15. Qb3 {[%clk 0:02:49]}  Rad8 {[%clk 0:02:55]} 16. Qb5 {[%clk 0:02:32]}  b6 {[%clk 0:02:25]} 17. Be3 {[%clk 0:02:01]}  Rb8 {[%clk 0:02:10]} 18. axb6 {[%clk 0:02:01]}  axb6 {[%clk 0:02:10]} 19. Bd2 {[%clk 0:01:30]}  Bd7 {[%clk 0:01:45]} 20. Qb3 {[%clk 0:01:29]}  Be6 {[%clk 0:01:45]} 21. Qc2 {[%clk 0:01:23]}  b5 {[%clk 0:01:45]} 22. Ne3 {[%clk 0:01:23]}  Nf4 {[%clk 0:01:40]} 23. h4 {[%clk 0:01:12]}  Qd7 {[%clk 0:01:36]} 24. g3 {[%clk 0:01:10]}  Nh3+ {[%clk 0:01:25]} 25. Kg2 {[%clk 0:01:11]}  Rbd8 {[%clk 0:01:25]} 26. Bc1 {[%clk 0:00:44]}  Nf4+ {[%clk 0:01:12]} 27. gxf4 {[%clk 0:00:11]}  exf4 {[%clk 0:01:13]} 28. Nd1 {[%clk 0:00:11]}  Bd5 {[%clk 0:01:13]} 29. Rxe8+ {[%clk 0:00:04]}  Rxe8 {[%clk 0:01:13]} 30. Bxf4 {[%clk 0:00:03]}  Qg4+ {[%clk 0:01:09]} 31. Bg3 {[%clk 0:00:02]}  Qxf3+ {[%clk 0:01:09]} 32. Kh3 {[%clk 0:00:02]}  Qh1+ {[%clk 0:01:05]} 33. Bh2 {[%clk 0:00:00]}  Qxf1+ {[%clk 0:01:04]} 0-1


[Site "https://www.chess.com"]

[Event "Titled Tuesday Blitz May 30 Early 2023"]
[White "Herrera Reyes, Jose Antonio"]
[Black "Ibarra Jerez, Jose Carlos"]
[WhiteFideId "2274914"]
[BlackFideId "2226332"]
[WhiteElo "2272"]
[BlackElo "2638"]
[Result "0-1"]
[Round "09"]
[TimeControl "180+2"]
[Date "2023.05.30"]
[WhiteClock "0:00:18"]
[BlackClock "0:00:04"]

1. Nf3 {[%clk 0:02:57]}  Nf6 {[%clk 0:02:59]} 2. g3 {[%clk 0:02:57]}  d6 {[%clk 0:02:59]} 3. Bg2 {[%clk 0:02:56]}  g6 {[%clk 0:02:59]} 4. d3 {[%clk 0:02:56]}  Bg7 {[%clk 0:03:00]} 5. Nc3 {[%clk 0:02:57]}  O-O {[%clk 0:03:00]} 6. h4 {[%clk 0:02:58]}  c5 {[%clk 0:03:00]} 7. h5 {[%clk 0:02:58]}  Nxh5 {[%clk 0:03:01]} 8. Bg5 {[%clk 0:02:58]}  Nf6 {[%clk 0:02:49]} 9. Bh6 {[%clk 0:02:58]}  Bxh6 {[%clk 0:02:48]} 10. Rxh6 {[%clk 0:02:59]}  Kg7 {[%clk 0:02:46]} 11. Qd2 {[%clk 0:02:59]}  Nc6 {[%clk 0:02:44]} 12. O-O-O {[%clk 0:02:57]}  Ng4 {[%clk 0:02:43]} 13. Rh4 {[%clk 0:02:57]}  h5 {[%clk 0:02:40]} 14. Rxh5 {[%clk 0:02:44]}  Rh8 {[%clk 0:02:29]} 15. Rxh8 {[%clk 0:02:43]}  Qxh8 {[%clk 0:02:26]} 16. Rh1 {[%clk 0:02:44]}  Qg8 {[%clk 0:02:07]} 17. Ng5 {[%clk 0:02:07]}  Kf8 {[%clk 0:01:14]} 18. Qf4 {[%clk 0:02:03]}  Nf6 {[%clk 0:01:11]} 19. Nd5 {[%clk 0:02:00]}  Nh5 {[%clk 0:00:52]} 20. Qh4 {[%clk 0:01:43]}  f6 {[%clk 0:00:50]} 21. Ne4 {[%clk 0:01:37]}  Qxd5 {[%clk 0:00:46]} 22. g4 {[%clk 0:01:35]}  Qxa2 {[%clk 0:00:13]} 23. gxh5 {[%clk 0:01:28]}  g5 {[%clk 0:00:14]} 24. Qg3 {[%clk 0:01:23]}  Bf5 {[%clk 0:00:14]} 25. Nxd6 {[%clk 0:01:16]}  Bh7 {[%clk 0:00:05]} 26. Nxb7 {[%clk 0:01:11]}  Rc8 {[%clk 0:00:04]} 27. Qg4 {[%clk 0:00:56]}  Rc7 {[%clk 0:00:04]} 28. Nxc5 {[%clk 0:00:54]}  Qa1+ {[%clk 0:00:03]} 29. Kd2 {[%clk 0:00:53]}  Qa5+ {[%clk 0:00:02]} 30. b4 {[%clk 0:00:54]}  Nxb4 {[%clk 0:00:02]} 31. Ne6+ {[%clk 0:00:54]}  Kg8 {[%clk 0:00:02]} 32. Nxc7 {[%clk 0:00:53]}  Nd5+ {[%clk 0:00:02]} 33. c3 {[%clk 0:00:41]}  Qxc3+ {[%clk 0:00:02]} 34. Kd1 {[%clk 0:00:41]}  Qa1+ {[%clk 0:00:03]} 35. Kd2 {[%clk 0:00:40]}  Qb2+ {[%clk 0:00:03]} 36. Kd1 {[%clk 0:00:18]}  Nc3+ {[%clk 0:00:03]} 37. Ke1 {[%clk 0:00:18]}  Qc1# {[%clk 0:00:04]} 0-1


[Site "https://www.chess.com"]

[Event "Titled Tuesday Blitz May 30 Early 2023"]
[White "Makarian, Rudik"]
[Black "Karthik Rajaa"]
[WhiteFideId "44105681"]
[BlackFideId "25035215"]
[WhiteElo "2461"]
[BlackElo "2215"]
[Result "1-0"]
[Round "09"]
[TimeControl "180+2"]
[Date "2023.05.30"]
[WhiteClock "0:00:15"]
[BlackClock "0:00:02"]

1. d4 {[%clk 0:03:00]}  Nf6 {[%clk 0:02:59]} 2. c4 {[%clk 0:02:57]}  g6 {[%clk 0:02:59]} 3. Nc3 {[%clk 0:02:57]}  Bg7 {[%clk 0:03:00]} 4. e4 {[%clk 0:02:58]}  d6 {[%clk 0:03:00]} 5. Be2 {[%clk 0:02:58]}  O-O {[%clk 0:03:00]} 6. Be3 {[%clk 0:02:59]}  e5 {[%clk 0:02:59]} 7. d5 {[%clk 0:03:00]}  Na6 {[%clk 0:02:59]} 8. g4 {[%clk 0:03:00]}  Nd7 {[%clk 0:02:59]} 9. h4 {[%clk 0:02:59]}  Ndc5 {[%clk 0:02:58]} 10. h5 {[%clk 0:02:59]}  h6 {[%clk 0:02:23]} 11. Qd2 {[%clk 0:02:43]}  g5 {[%clk 0:02:20]} 12. f3 {[%clk 0:02:41]}  Nb8 {[%clk 0:01:38]} 13. b4 {[%clk 0:02:33]}  Nca6 {[%clk 0:01:37]} 14. a3 {[%clk 0:02:33]}  c5 {[%clk 0:01:35]} 15. bxc5 {[%clk 0:02:25]}  Nxc5 {[%clk 0:01:35]} 16. Bxc5 {[%clk 0:02:22]}  dxc5 {[%clk 0:01:36]} 17. Nh3 {[%clk 0:02:21]}  Na6 {[%clk 0:01:26]} 18. Nf2 {[%clk 0:02:20]}  Nc7 {[%clk 0:01:25]} 19. Nd3 {[%clk 0:02:20]}  b6 {[%clk 0:01:25]} 20. Kf2 {[%clk 0:02:19]}  Ne8 {[%clk 0:01:25]} 21. Nd1 {[%clk 0:02:15]}  Nd6 {[%clk 0:01:24]} 22. Ne3 {[%clk 0:02:16]}  Bd7 {[%clk 0:01:12]} 23. Kg2 {[%clk 0:02:16]}  Qe7 {[%clk 0:01:10]} 24. Rhb1 {[%clk 0:02:13]}  Rfb8 {[%clk 0:01:10]} 25. Qc2 {[%clk 0:02:08]}  Rc8 {[%clk 0:00:54]} 26. Qd2 {[%clk 0:01:57]}  Rab8 {[%clk 0:00:54]} 27. Ra2 {[%clk 0:01:51]}  Bf6 {[%clk 0:00:47]} 28. Rab2 {[%clk 0:01:49]}  Qe8 {[%clk 0:00:46]} 29. Bd1 {[%clk 0:01:48]}  Bd8 {[%clk 0:00:44]} 30. Qc3 {[%clk 0:01:45]}  f6 {[%clk 0:00:44]} 31. Qd2 {[%clk 0:01:28]}  Kg7 {[%clk 0:00:44]} 32. Nc1 {[%clk 0:01:28]}  Be7 {[%clk 0:00:40]} 33. Ne2 {[%clk 0:01:28]}  Qd8 {[%clk 0:00:38]} 34. Nc3 {[%clk 0:01:28]}  a6 {[%clk 0:00:35]} 35. Be2 {[%clk 0:01:21]}  Qc7 {[%clk 0:00:35]} 36. Rb3 {[%clk 0:01:20]}  Bd8 {[%clk 0:00:35]} 37. Qb2 {[%clk 0:01:19]}  Qa7 {[%clk 0:00:34]} 38. Qd2 {[%clk 0:01:14]}  Be7 {[%clk 0:00:32]} 39. R3b2 {[%clk 0:01:13]}  Bd8 {[%clk 0:00:32]} 40. Bd1 {[%clk 0:01:05]}  Rb7 {[%clk 0:00:29]} 41. Ba4 {[%clk 0:01:03]}  Bxa4 {[%clk 0:00:25]} 42. Nxa4 {[%clk 0:01:04]}  b5 {[%clk 0:00:26]} 43. Nc3 {[%clk 0:01:00]}  b4 {[%clk 0:00:26]} 44. axb4 {[%clk 0:00:55]}  cxb4 {[%clk 0:00:27]} 45. Na4 {[%clk 0:00:53]}  Rxc4 {[%clk 0:00:18]} 46. Nxc4 {[%clk 0:00:34]}  Nxc4 {[%clk 0:00:19]} 47. Qf2 {[%clk 0:00:33]}  Nxb2 {[%clk 0:00:18]} 48. Qxa7 {[%clk 0:00:30]}  Rxa7 {[%clk 0:00:19]} 49. Rxb2 {[%clk 0:00:31]}  a5 {[%clk 0:00:19]} 50. Rc2 {[%clk 0:00:31]}  Rc7 {[%clk 0:00:19]} 51. Rxc7+ {[%clk 0:00:28]}  Bxc7 {[%clk 0:00:20]} 52. Kf2 {[%clk 0:00:28]}  Kf7 {[%clk 0:00:21]} 53. Ke2 {[%clk 0:00:29]}  Ke7 {[%clk 0:00:20]} 54. Kd3 {[%clk 0:00:30]}  Kd6 {[%clk 0:00:18]} 55. Kc4 {[%clk 0:00:30]}  Bd8 {[%clk 0:00:18]} 56. Kb5 {[%clk 0:00:30]}  Bc7 {[%clk 0:00:18]} 57. Nc5 {[%clk 0:00:30]}  Bd8 {[%clk 0:00:16]} 58. Nb7+ {[%clk 0:00:27]}  Kd7 {[%clk 0:00:15]} 59. Nc5+ {[%clk 0:00:27]}  Kd6 {[%clk 0:00:15]} 60. Kc4 {[%clk 0:00:24]}  Bb6 {[%clk 0:00:15]} 61. Ne6 {[%clk 0:00:24]}  Bd4 {[%clk 0:00:11]} 62. Ng7 {[%clk 0:00:19]}  Bc3 {[%clk 0:00:10]} 63. Nf5+ {[%clk 0:00:19]}  Kd7 {[%clk 0:00:09]} 64. Kb3 {[%clk 0:00:19]}  Kc7 {[%clk 0:00:07]} 65. Nxh6 {[%clk 0:00:19]}  Kb6 {[%clk 0:00:08]} 66. d6 {[%clk 0:00:18]}  Bd4 {[%clk 0:00:07]} 67. d7 {[%clk 0:00:13]}  Kc7 {[%clk 0:00:06]} 68. Nf5 {[%clk 0:00:14]}  Kxd7 {[%clk 0:00:02]} 69. h6 {[%clk 0:00:15]} 1-0


[Site "https://www.chess.com"]

[Event "Titled Tuesday Blitz May 30 Early 2023"]
[White "Ozates, Tuna"]
[Black "Ahmadzada, Ahmad"]
[WhiteFideId "6354521"]
[BlackFideId "13413007"]
[WhiteElo "2151"]
[BlackElo "2388"]
[Result "0-1"]
[Round "09"]
[TimeControl "180+2"]
[Date "2023.05.30"]
[WhiteClock "0:00:06"]
[BlackClock "0:00:31"]

1. e4 {[%clk 0:02:55]}  c5 {[%clk 0:02:51]} 2. Nf3 {[%clk 0:02:56]}  e6 {[%clk 0:02:51]} 3. d4 {[%clk 0:02:55]}  cxd4 {[%clk 0:02:52]} 4. Nxd4 {[%clk 0:02:56]}  d6 {[%clk 0:02:52]} 5. c4 {[%clk 0:02:51]}  Nf6 {[%clk 0:02:52]} 6. Nc3 {[%clk 0:02:51]}  Be7 {[%clk 0:02:53]} 7. Be2 {[%clk 0:02:51]}  O-O {[%clk 0:02:53]} 8. O-O {[%clk 0:02:52]}  a6 {[%clk 0:02:54]} 9. Be3 {[%clk 0:02:51]}  Qc7 {[%clk 0:02:55]} 10. Qd2 {[%clk 0:02:51]}  b6 {[%clk 0:02:55]} 11. Rfc1 {[%clk 0:02:50]}  Bb7 {[%clk 0:02:56]} 12. a4 {[%clk 0:02:51]}  Nbd7 {[%clk 0:02:57]} 13. f3 {[%clk 0:02:51]}  Rac8 {[%clk 0:02:56]} 14. a5 {[%clk 0:02:51]}  bxa5 {[%clk 0:02:50]} 15. Nb3 {[%clk 0:02:51]}  h5 {[%clk 0:02:45]} 16. Nxa5 {[%clk 0:02:50]}  Ba8 {[%clk 0:02:45]} 17. b4 {[%clk 0:02:49]}  Ne5 {[%clk 0:02:28]} 18. Na4 {[%clk 0:02:45]}  Rb8 {[%clk 0:02:27]} 19. b5 {[%clk 0:02:42]}  Nfd7 {[%clk 0:02:12]} 20. Rab1 {[%clk 0:02:25]}  Nc5 {[%clk 0:01:53]} 21. Nxc5 {[%clk 0:02:24]}  dxc5 {[%clk 0:01:53]} 22. Bf4 {[%clk 0:02:15]}  Bd6 {[%clk 0:01:47]} 23. Kh1 {[%clk 0:01:55]}  Rfd8 {[%clk 0:01:41]} 24. Qc3 {[%clk 0:01:45]}  Ng6 {[%clk 0:01:30]} 25. Bxd6 {[%clk 0:01:39]}  Rxd6 {[%clk 0:01:31]} 26. Rd1 {[%clk 0:01:30]}  Rbd8 {[%clk 0:01:26]} 27. Rxd6 {[%clk 0:01:26]}  Rxd6 {[%clk 0:01:25]} 28. Rd1 {[%clk 0:01:22]}  Nf4 {[%clk 0:01:25]} 29. Rxd6 {[%clk 0:01:10]}  Qxd6 {[%clk 0:01:25]} 30. Qe3 {[%clk 0:00:49]}  g5 {[%clk 0:00:59]} 31. Nb3 {[%clk 0:00:46]}  axb5 {[%clk 0:00:53]} 32. cxb5 {[%clk 0:00:40]}  Nxe2 {[%clk 0:00:40]} 33. Qxe2 {[%clk 0:00:37]}  c4 {[%clk 0:00:41]} 34. Na5 {[%clk 0:00:22]}  c3 {[%clk 0:00:38]} 35. Nc4 {[%clk 0:00:17]}  Qb4 {[%clk 0:00:34]} 36. Ne3 {[%clk 0:00:06]}  Qb1+ {[%clk 0:00:31]} 0-1


[Site "https://www.chess.com"]

[Event "Titled Tuesday Blitz May 30 Early 2023"]
[White "Trifan, Andrei Ioan"]
[Black "Bachmann, Axel"]
[WhiteFideId "12967068"]
[BlackFideId "3700488"]
[WhiteElo "2208"]
[BlackElo "2605"]
[Result "0-1"]
[Round "09"]
[TimeControl "180+2"]
[Date "2023.05.30"]
[WhiteClock "0:00:11"]
[BlackClock "0:00:22"]

1. e4 {[%clk 0:03:00]}  c6 {[%clk 0:02:59]} 2. d4 {[%clk 0:02:59]}  d5 {[%clk 0:02:59]} 3. exd5 {[%clk 0:02:59]}  cxd5 {[%clk 0:02:59]} 4. c4 {[%clk 0:03:00]}  Nf6 {[%clk 0:02:53]} 5. Nc3 {[%clk 0:02:59]}  Nc6 {[%clk 0:02:52]} 6. Nf3 {[%clk 0:02:59]}  Be6 {[%clk 0:02:45]} 7. Ne2 {[%clk 0:02:39]}  dxc4 {[%clk 0:02:39]} 8. Nf4 {[%clk 0:02:39]}  Bd5 {[%clk 0:02:40]} 9. Nxd5 {[%clk 0:02:36]}  Qxd5 {[%clk 0:02:41]} 10. b3 {[%clk 0:02:36]}  cxb3 {[%clk 0:02:37]} 11. axb3 {[%clk 0:02:36]}  e6 {[%clk 0:02:38]} 12. Bc4 {[%clk 0:02:33]}  Bb4+ {[%clk 0:02:38]} 13. Kf1 {[%clk 0:02:20]}  Qh5 {[%clk 0:02:28]} 14. Bg5 {[%clk 0:02:11]}  Ne4 {[%clk 0:02:25]} 15. d5 {[%clk 0:01:54]}  Nxg5 {[%clk 0:01:55]} 16. dxc6 {[%clk 0:01:50]}  bxc6 {[%clk 0:01:56]} 17. Ra4 {[%clk 0:01:27]}  Nxf3 {[%clk 0:01:38]} 18. gxf3 {[%clk 0:01:04]}  Rd8 {[%clk 0:01:32]} 19. Qe2 {[%clk 0:00:59]}  Qh3+ {[%clk 0:01:22]} 20. Kg1 {[%clk 0:00:59]}  a5 {[%clk 0:01:21]} 21. Ra1 {[%clk 0:00:45]}  O-O {[%clk 0:01:17]} 22. Rd1 {[%clk 0:00:45]}  h6 {[%clk 0:01:13]} 23. Bd3 {[%clk 0:00:37]}  Rd5 {[%clk 0:01:11]} 24. f4 {[%clk 0:00:35]}  Rfd8 {[%clk 0:01:10]} 25. Bc2 {[%clk 0:00:36]}  Rxd1+ {[%clk 0:01:01]} 26. Bxd1 {[%clk 0:00:37]}  Rd2 {[%clk 0:01:00]} 27. Qf3 {[%clk 0:00:29]}  Qxf3 {[%clk 0:00:55]} 28. Bxf3 {[%clk 0:00:30]}  Bc5 {[%clk 0:00:55]} 29. Kg2 {[%clk 0:00:28]}  Rxf2+ {[%clk 0:00:48]} 30. Kg3 {[%clk 0:00:28]}  Rc2 {[%clk 0:00:49]} 31. Rd1 {[%clk 0:00:19]}  Rc3 {[%clk 0:00:48]} 32. Kg2 {[%clk 0:00:15]}  Rxb3 {[%clk 0:00:44]} 33. Rd8+ {[%clk 0:00:15]}  Kh7 {[%clk 0:00:43]} 34. Bxc6 {[%clk 0:00:16]}  Rb2+ {[%clk 0:00:43]} 35. Kg3 {[%clk 0:00:16]}  Bg1 {[%clk 0:00:39]} 36. h3 {[%clk 0:00:15]}  Bh2+ {[%clk 0:00:39]} 37. Kg4 {[%clk 0:00:15]}  Rb4 {[%clk 0:00:37]} 38. Kf3 {[%clk 0:00:15]}  Bxf4 {[%clk 0:00:35]} 39. Be4+ {[%clk 0:00:13]}  f5 {[%clk 0:00:35]} 40. Bd3 {[%clk 0:00:14]}  Bg5 {[%clk 0:00:32]} 41. Re8 {[%clk 0:00:14]}  Rb3 {[%clk 0:00:26]} 42. Ke2 {[%clk 0:00:14]}  Rb6 {[%clk 0:00:26]} 43. Kf3 {[%clk 0:00:13]}  Kg6 {[%clk 0:00:25]} 44. Ra8 {[%clk 0:00:14]}  Kf6 {[%clk 0:00:24]} 45. Rxa5 {[%clk 0:00:14]}  e5 {[%clk 0:00:25]} 46. Ra6 {[%clk 0:00:13]}  e4+ {[%clk 0:00:23]} 47. Ke2 {[%clk 0:00:11]}  exd3+ {[%clk 0:00:22]} 0-1


[Site "https://www.chess.com"]

[Event "Titled Tuesday Blitz May 30 Early 2023"]
[White "Shuvalova, Polina"]
[Black "Pranav, V"]
[WhiteFideId "24171760"]
[BlackFideId "25060783"]
[WhiteElo "2281"]
[BlackElo "2515"]
[Result "0-1"]
[Round "09"]
[TimeControl "180+2"]
[Date "2023.05.30"]
[WhiteClock "0:00:02"]
[BlackClock "0:00:40"]

1. e4 {[%clk 0:02:58]}  e5 {[%clk 0:02:59]} 2. Nf3 {[%clk 0:02:58]}  Nc6 {[%clk 0:03:00]} 3. Nc3 {[%clk 0:02:58]}  Nf6 {[%clk 0:03:00]} 4. d4 {[%clk 0:02:57]}  exd4 {[%clk 0:03:00]} 5. Nxd4 {[%clk 0:02:56]}  Bb4 {[%clk 0:03:00]} 6. Nxc6 {[%clk 0:02:55]}  bxc6 {[%clk 0:03:01]} 7. Bd3 {[%clk 0:02:54]}  d6 {[%clk 0:03:02]} 8. O-O {[%clk 0:02:53]}  Ng4 {[%clk 0:03:02]} 9. h3 {[%clk 0:02:51]}  Ne5 {[%clk 0:03:02]} 10. f4 {[%clk 0:02:49]}  Nxd3 {[%clk 0:03:01]} 11. Qxd3 {[%clk 0:02:48]}  O-O {[%clk 0:03:02]} 12. f5 {[%clk 0:02:46]}  Re8 {[%clk 0:02:49]} 13. f6 {[%clk 0:02:43]}  g6 {[%clk 0:02:49]} 14. Bg5 {[%clk 0:02:15]}  a5 {[%clk 0:02:41]} 15. Rf4 {[%clk 0:02:10]}  Re5 {[%clk 0:02:32]} 16. Qg3 {[%clk 0:02:08]}  Rb8 {[%clk 0:02:29]} 17. Kh1 {[%clk 0:02:01]}  Bc5 {[%clk 0:02:04]} 18. b3 {[%clk 0:01:57]}  Bd4 {[%clk 0:02:03]} 19. Rd1 {[%clk 0:01:56]}  Bxc3 {[%clk 0:01:59]} 20. Rf3 {[%clk 0:01:38]}  Bb2 {[%clk 0:01:39]} 21. Rb1 {[%clk 0:01:07]}  Rxg5 {[%clk 0:01:12]} 22. Qxg5 {[%clk 0:01:07]}  Be5 {[%clk 0:01:13]} 23. Rd1 {[%clk 0:01:03]}  Qf8 {[%clk 0:01:12]} 24. Qh4 {[%clk 0:00:50]}  h6 {[%clk 0:01:11]} 25. c4 {[%clk 0:00:46]}  Kh7 {[%clk 0:01:08]} 26. g4 {[%clk 0:00:45]}  Bb7 {[%clk 0:01:05]} 27. c5 {[%clk 0:00:40]}  Re8 {[%clk 0:01:04]} 28. g5 {[%clk 0:00:39]}  h5 {[%clk 0:01:04]} 29. Qf2 {[%clk 0:00:38]}  dxc5 {[%clk 0:00:59]} 30. Rfd3 {[%clk 0:00:31]}  Bd6 {[%clk 0:00:56]} 31. Re1 {[%clk 0:00:26]}  c4 {[%clk 0:00:53]} 32. bxc4 {[%clk 0:00:26]}  c5 {[%clk 0:00:53]} 33. Rde3 {[%clk 0:00:25]}  Re5 {[%clk 0:00:51]} 34. h4 {[%clk 0:00:25]}  Qe8 {[%clk 0:00:51]} 35. Qc2 {[%clk 0:00:24]}  Qe6 {[%clk 0:00:50]} 36. Qg2 {[%clk 0:00:12]}  Rf5 {[%clk 0:00:43]} 37. Rb1 {[%clk 0:00:12]}  Bc6 {[%clk 0:00:40]} 38. Kg1 {[%clk 0:00:02]}  Rf4 {[%clk 0:00:40]} 0-1


[Site "https://www.chess.com"]

[Event "Titled Tuesday Blitz May 30 Early 2023"]
[White "Goryachkina, Aleksandra"]
[Black "Zhigalko, Sergei"]
[WhiteFideId "4147103"]
[BlackFideId "13502956"]
[WhiteElo "2471"]
[BlackElo "2626"]
[Result "0-1"]
[Round "09"]
[TimeControl "180+2"]
[Date "2023.05.30"]
[WhiteClock "0:00:00"]
[BlackClock "0:00:12"]

1. d4 {[%clk 0:02:59]}  Nf6 {[%clk 0:03:00]} 2. c4 {[%clk 0:02:59]}  e6 {[%clk 0:03:00]} 3. Nf3 {[%clk 0:02:59]}  b6 {[%clk 0:03:00]} 4. g3 {[%clk 0:02:57]}  Ba6 {[%clk 0:03:00]} 5. b3 {[%clk 0:02:56]}  Bb4+ {[%clk 0:03:01]} 6. Bd2 {[%clk 0:02:56]}  Be7 {[%clk 0:03:01]} 7. Nc3 {[%clk 0:02:53]}  O-O {[%clk 0:03:01]} 8. e4 {[%clk 0:02:50]}  d5 {[%clk 0:03:01]} 9. cxd5 {[%clk 0:02:47]}  Bxf1 {[%clk 0:03:02]} 10. Kxf1 {[%clk 0:02:47]}  exd5 {[%clk 0:03:02]} 11. e5 {[%clk 0:02:47]}  Ne4 {[%clk 0:03:03]} 12. Kg2 {[%clk 0:02:45]}  Qd7 {[%clk 0:02:58]} 13. Rc1 {[%clk 0:02:41]}  Nxc3 {[%clk 0:02:52]} 14. Rxc3 {[%clk 0:02:36]}  Rc8 {[%clk 0:02:45]} 15. Bg5 {[%clk 0:02:25]}  Bb4 {[%clk 0:02:38]} 16. Rd3 {[%clk 0:02:23]}  Nc6 {[%clk 0:02:34]} 17. h4 {[%clk 0:02:16]}  h6 {[%clk 0:02:33]} 18. Bf4 {[%clk 0:02:10]}  Nd8 {[%clk 0:02:31]} 19. Be3 {[%clk 0:02:04]}  Ne6 {[%clk 0:02:29]} 20. h5 {[%clk 0:02:03]}  Be7 {[%clk 0:02:23]} 21. Qd2 {[%clk 0:01:55]}  Rd8 {[%clk 0:02:17]} 22. Rd1 {[%clk 0:01:27]}  Rac8 {[%clk 0:02:17]} 23. Nh2 {[%clk 0:01:26]}  a5 {[%clk 0:00:47]} 24. g4 {[%clk 0:01:21]}  c5 {[%clk 0:00:39]} 25. dxc5 {[%clk 0:01:20]}  d4 {[%clk 0:00:40]} 26. Bxd4 {[%clk 0:01:16]}  Qc6+ {[%clk 0:00:26]} 27. f3 {[%clk 0:00:58]}  Bg5 {[%clk 0:00:17]} 28. Qc2 {[%clk 0:00:20]}  Nf4+ {[%clk 0:00:16]} 29. Kg3 {[%clk 0:00:20]}  Nxd3 {[%clk 0:00:15]} 30. Rxd3 {[%clk 0:00:20]}  bxc5 {[%clk 0:00:13]} 31. Bc3 {[%clk 0:00:16]}  Rxd3 {[%clk 0:00:14]} 32. Qxd3 {[%clk 0:00:16]}  c4 {[%clk 0:00:14]} 33. bxc4 {[%clk 0:00:15]}  Qxc4 {[%clk 0:00:15]} 34. Qxc4 {[%clk 0:00:15]}  Rxc4 {[%clk 0:00:16]} 35. Bxa5 {[%clk 0:00:15]}  Bf4+ {[%clk 0:00:17]} 36. Kh3 {[%clk 0:00:15]}  Bxe5 {[%clk 0:00:12]} 37. Nf1 {[%clk 0:00:12]}  Ra4 {[%clk 0:00:12]} 38. Bd2 {[%clk 0:00:11]}  Rxa2 {[%clk 0:00:12]} 39. f4 {[%clk 0:00:10]}  Bd6 {[%clk 0:00:11]} 40. Kg3 {[%clk 0:00:09]}  Ra3+ {[%clk 0:00:09]} 41. Kg2 {[%clk 0:00:07]}  Bc5 {[%clk 0:00:09]} 42. f5 {[%clk 0:00:05]}  Bd4 {[%clk 0:00:08]} 43. Bf4 {[%clk 0:00:02]}  Ra4 {[%clk 0:00:08]} 44. Bd2 {[%clk 0:00:01]}  Bf6 {[%clk 0:00:07]} 45. Kg3 {[%clk 0:00:02]}  Bg5 {[%clk 0:00:07]} 46. Bxg5 {[%clk 0:00:01]}  hxg5 {[%clk 0:00:08]} 47. Nd2 {[%clk 0:00:02]}  Ra3+ {[%clk 0:00:09]} 48. Kf2 {[%clk 0:00:02]}  Ra4 {[%clk 0:00:09]} 49. Kf3 {[%clk 0:00:02]}  f6 {[%clk 0:00:09]} 50. Ne4 {[%clk 0:00:02]}  Ra3+ {[%clk 0:00:10]} 51. Kf2 {[%clk 0:00:02]}  Kf8 {[%clk 0:00:11]} 52. Nc5 {[%clk 0:00:01]}  Ra2+ {[%clk 0:00:11]} 53. Kf3 {[%clk 0:00:01]}  Kf7 {[%clk 0:00:12]} 54. Ne6 {[%clk 0:00:01]}  Ra3+ {[%clk 0:00:12]} 55. Kf2 {[%clk 0:00:02]}  Rd3 {[%clk 0:00:12]} 56. Ke2 {[%clk 0:00:02]}  Rg3 {[%clk 0:00:12]} 57. Kf2 {[%clk 0:00:00]}  Rxg4 {[%clk 0:00:12]} 0-1


[Site "https://www.chess.com"]

[Event "Titled Tuesday Blitz May 30 Early 2023"]
[White "Agibileg, Uurtsaikh"]
[Black "Asis Gargatagli, Hipolito"]
[WhiteFideId "4901606"]
[BlackFideId "2260735"]
[WhiteElo "2353"]
[BlackElo "2557"]
[Result "0-1"]
[Round "09"]
[TimeControl "180+2"]
[Date "2023.05.30"]
[WhiteClock "0:01:02"]
[BlackClock "0:02:37"]

1. d4 {[%clk 0:02:58]}  f5 {[%clk 0:03:00]} 2. g3 {[%clk 0:02:52]}  Nf6 {[%clk 0:03:00]} 3. Bg2 {[%clk 0:02:51]}  g6 {[%clk 0:03:00]} 4. Nf3 {[%clk 0:02:52]}  Bg7 {[%clk 0:03:00]} 5. O-O {[%clk 0:02:52]}  O-O {[%clk 0:03:01]} 6. b3 {[%clk 0:02:52]}  d6 {[%clk 0:03:00]} 7. Bb2 {[%clk 0:02:52]}  a5 {[%clk 0:03:00]} 8. a4 {[%clk 0:02:52]}  Nc6 {[%clk 0:03:00]} 9. Nbd2 {[%clk 0:02:47]}  Qe8 {[%clk 0:02:56]} 10. c4 {[%clk 0:02:35]}  e5 {[%clk 0:02:54]} 11. dxe5 {[%clk 0:02:33]}  dxe5 {[%clk 0:02:54]} 12. e4 {[%clk 0:02:29]}  f4 {[%clk 0:02:54]} 13. gxf4 {[%clk 0:02:25]}  Nh5 {[%clk 0:02:54]} 14. fxe5 {[%clk 0:02:09]}  Nf4 {[%clk 0:02:54]} 15. Kh1 {[%clk 0:02:04]}  Bg4 {[%clk 0:02:53]} 16. Rg1 {[%clk 0:01:54]}  Rd8 {[%clk 0:02:51]} 17. Qc2 {[%clk 0:01:36]}  Nb4 {[%clk 0:02:51]} 18. Qc3 {[%clk 0:01:28]}  Rd3 {[%clk 0:02:50]} 19. Qc1 {[%clk 0:01:18]}  Nxg2 {[%clk 0:02:49]} 20. Rxg2 {[%clk 0:01:12]}  Bxf3 {[%clk 0:02:49]} 21. Nxf3 {[%clk 0:01:12]}  Rdxf3 {[%clk 0:02:48]} 22. Bd4 {[%clk 0:01:09]}  Bxe5 {[%clk 0:02:40]} 23. Bxe5 {[%clk 0:01:07]}  Qxe5 {[%clk 0:02:41]} 24. Qg1 {[%clk 0:01:02]}  Nd3 {[%clk 0:02:37]} 0-1


[Site "https://www.chess.com"]